Workbook

Sheet паспорт
A1: ПАТ "УКРТРАНСГАЗ" | G1: ПАСПОРТ ФІЗИКО-ХІМІЧНИХ ПОКАЗНИКІВ ПРИРОДНОГО ГАЗУ № 683
A2: Філія "УМГ "ХАРКІВТРАНСГАЗ" | G2: переданого Сєвєродонецьким ЛВУМГ та прийнятого ПАТ "УКРТРАНСГАЗ" філія "Укравтогаз"
A3: Сєвєродонецьке ЛВУМГ | G3: Маршрут № 683
A4: Вимірювальна хіміко-аналітична лабораторія
A5: Свідоцтво № РЬ089/2014 чинно до 06.06.2017 р. | K5: по газопроводу "Луганськ-Лисичанськ-Рубіжне" | V5: за період з | X5: 01.03.2017 р. | Z5: по | AA5: 31.03.2017 р.
A7: Число місяця | B7: Компонентний склад, мол. % | N7: Фізико-хімічні показники газу обчислені на основі компонентного складу, 101,325 кПа | X7: Температура точки роси за вологою (Р = 3.92 МПа), °С | Y7: Температура точки роси за вуглеводнями, °С | Z7: Вміст сірководню, г/м3 | AA7: Вміст меркаптанової сірки, г/м3 | AB7: Вміст механічних домішок, г/м3
N8: Густина абсолютна, кг/м3,при 20 °С, | O8: Температура вимірювання/згоряння при 20/25°С
B9: метан, С1 | C9: етан, С2 | D9: пропан, С3 | E9: ізо-бутан, і-С4 | F9: н-бутан, н-С4 | G9: нео-пентан, нео-С5 | H9: ізо-пентан, і-С5 | I9: н-пентан, н-С5 | J9: гексани та вищі, С6+ | K9: кисень, О2 | L9: азот, N2 | M9: діоксид вуглецю, CО2 | O9: Теплота згоряння нижча | R9: Теплота згоряння вища | U9: Число Воббе вище
O10: ккал/м³ | P10: МДж/м³ | Q10: кВт⋅год/м³ | R10: ккал/м³ | S10: МДж/м³ | T10: кВт⋅год/м³ | U10: ккал/м³ | V10: МДж/м³ | W10: кВт⋅год/м³
A11: 1 | O11: =P11*238.8459 -> 8142.806077 | P11: 34.0923 | Q11: =P11/3.6 -> 9.470083333 | R11: =S11*238.8459 -> 9022.85768 | S11: 37.7769 | T11: =S11/3.6 -> 10.49358333 | U11: =V11/0.0041868 -> 11729.31595 | V11: 49.1083 | W11: =V11/3.6 -> 13.64119444 | AC11: =SUM(B11:M11)+$K$42+$N$42 -> 0
A12: 2 | O12: =P12*238.8459 -> 8142.806077 | P12: 34.0923 | Q12: =P12/3.6 -> 9.470083333 | R12: =S12*238.8459 -> 9022.85768 | S12: 37.7769 | T12: =S12/3.6 -> 10.49358333 | U12: =V12/0.0041868 -> 11729.31595 | V12: 49.1083 | W12: =V12/3.6 -> 13.64119444 | AC12: 0
A13: 3 | O13: 8142.806077 | P13: 34.0923 | Q13: 9.470083333 | R13: 9022.85768 | S13: 37.7769 | T13: 10.49358333 | U13: 11729.31595 | V13: 49.1083 | W13: 13.64119444 | AC13: 0 | AD13: =IF(AC13=100,"ОК"," ") -> 
A14: 4 | O14: 8142.806077 | P14: 34.0923 | Q14: 9.470083333 | R14: 9022.85768 | S14: 37.7769 | T14: 10.49358333 | U14: 11729.31595 | V14: 49.1083 | W14: 13.64119444 | AC14: 0 | AD14: =IF(AC14=100,"ОК"," ") -> 
A15: 5 | O15: 8142.806077 | P15: 34.0923 | Q15: 9.470083333 | R15: 9022.85768 | S15: 37.7769 | T15: 10.49358333 | U15: 11729.31595 | V15: 49.1083 | W15: 13.64119444 | AC15: 0
A16: 6 | B16: 88.0237 | C16: 3.448 | D16: 1.5744 | E16: 0.2111 | F16: 0.3942 | G16: 0.0034 | H16: 0.0799 | I16: 0.0671 | J16: 0.0573 | K16: 0.0094 | L16: 3.7056 | M16: 2.4259 | N16: 0.7696 | O16: =P16*238.8459 -> 8071.773306 | P16: 33.7949 | Q16: =P16/3.6 -> 9.387472222 | R16: =S16*238.8459 -> 8934.747427 | S16: 37.408 | T16: =S16/3.6 -> 10.39111111 | U16: =V16/0.0041868 -> 11177.51027 | V16: 46.798 | W16: =V16/3.6 -> 12.99944444 | AC16: 100 | AD16: ОК
A17: 7 | O17: =P17*238.8459 -> 8071.773306 | P17: 33.7949 | Q17: =P17/3.6 -> 9.387472222 | R17: =S17*238.8459 -> 8934.747427 | S17: 37.408 | T17: =S17/3.6 -> 10.39111111 | U17: =V17/0.0041868 -> 11177.51027 | V17: 46.798 | W17: =V17/3.6 -> 12.99944444 | AC17: 0
A18: 8 | O18: 8071.773306 | P18: 33.7949 | Q18: 9.387472222 | R18: 8934.747427 | S18: 37.408 | T18: 10.39111111 | U18: 11177.51027 | V18: 46.798 | W18: 12.99944444 | AC18: 0
A19: 9 | O19: 8071.773306 | P19: 33.7949 | Q19: 9.387472222 | R19: 8934.747427 | S19: 37.408 | T19: 10.39111111 | U19: 11177.51027 | V19: 46.798 | W19: 12.99944444 | AC19: 0
A20: 10 | O20: 8071.773306 | P20: 33.7949 | Q20: 9.387472222 | R20: 8934.747427 | S20: 37.408 | T20: 10.39111111 | U20: 11177.51027 | V20: 46.798 | W20: 12.99944444 | AC20: 0
A21: 11 | O21: 8071.773306 | P21: 33.7949 | Q21: 9.387472222 | R21: 8934.747427 | S21: 37.408 | T21: 10.39111111 | U21: 11177.51027 | V21: 46.798 | W21: 12.99944444 | AC21: 0
A22: 12 | O22: 8071.773306 | P22: 33.7949 | Q22: 9.387472222 | R22: 8934.747427 | S22: 37.408 | T22: 10.39111111 | U22: 11177.51027 | V22: 46.798 | W22: 12.99944444 | AC22: 0
A23: 13 | O23: 8071.773306 | P23: 33.7949 | Q23: 9.387472222 | R23: 8934.747427 | S23: 37.408 | T23: 10.39111111 | U23: 11177.51027 | V23: 46.798 | W23: 12.99944444 | AC23: 0
A24: 14 | O24: 8071.773306 | P24: 33.7949 | Q24: 9.387472222 | R24: 8934.747427 | S24: 37.408 | T24: 10.39111111 | U24: 11177.51027 | V24: 46.798 | W24: 12.99944444 | AC24: 0
A25: 15 | O25: 8071.773306 | P25: 33.7949 | Q25: 9.387472222 | R25: 8934.747427 | S25: 37.408 | T25: 10.39111111 | U25: 11177.51027 | V25: 46.798 | W25: 12.99944444 | AC25: 0
A26: 16 | O26: 8071.773306 | P26: 33.7949 | Q26: 9.387472222 | R26: 8934.747427 | S26: 37.408 | T26: 10.39111111 | U26: 11177.51027 | V26: 46.798 | W26: 12.99944444 | AC26: 0
A27: 17 | O27: 8071.773306 | P27: 33.7949 | Q27: 9.387472222 | R27: 8934.747427 | S27: 37.408 | T27: 10.39111111 | U27: 11177.51027 | V27: 46.798 | W27: 12.99944444 | AC27: 0
A28: 18 | O28: 8071.773306 | P28: 33.7949 | Q28: 9.387472222 | R28: 8934.747427 | S28: 37.408 | T28: 10.39111111 | U28: 11177.51027 | V28: 46.798 | W28: 12.99944444 | AC28: 0
A29: 19 | O29: 8071.773306 | P29: 33.7949 | Q29: 9.387472222 | R29: 8934.747427 | S29: 37.408 | T29: 10.39111111 | U29: 11177.51027 | V29: 46.798 | W29: 12.99944444 | AC29: 0
A30: 20 | O30: =P30*238.8459 -> 8071.773306 | P30: 33.7949 | Q30: =P30/3.6 -> 9.387472222 | R30: =S30*238.8459 -> 8934.747427 | S30: 37.408 | T30: =S30/3.6 -> 10.39111111 | U30: =V30/0.0041868 -> 11177.51027 | V30: 46.798 | W30: =V30/3.6 -> 12.99944444 | AC30: 0 | AD30: =IF(AC30=100,"ОК"," ") -> 
A31: 21 | B31: 88.1949 | C31: 3.5098 | D31: 1.6219 | E31: 0.2253 | F31: 0.4379 | G31: 0.0096 | H31: 0.0984 | I31: 0.0839 | J31: 0.0743 | K31: 0.0109 | L31: 3.7299 | M31: 2.0032 | N31: 0.7682 | O31: =P31*238.8459 -> 8139.295042 | P31: 34.0776 | Q31: =P31/3.6 -> 9.466 | R31: =S31*238.8459 -> 9008.311964 | S31: 37.716 | T31: =S31/3.6 -> 10.47666667 | U31: =V31/0.0041868 -> 11279.71243 | V31: 47.2259 | W31: =V31/3.6 -> 13.11830556 | AC31: 100 | AD31: ОК
A32: 22 | O32: =P32*238.8459 -> 8139.295042 | P32: 34.0776 | Q32: =P32/3.6 -> 9.466 | R32: =S32*238.8459 -> 9008.311964 | S32: 37.716 | T32: =S32/3.6 -> 10.47666667 | U32: =V32/0.0041868 -> 11279.71243 | V32: 47.2259 | W32: =V32/3.6 -> 13.11830556 | AC32: 0
A33: 23 | O33: 8139.295042 | P33: 34.0776 | Q33: 9.466 | R33: 9008.311964 | S33: 37.716 | T33: 10.47666667 | U33: 11279.71243 | V33: 47.2259 | W33: 13.11830556 | AC33: 0 | AD33: =IF(AC33=100,"ОК"," ") -> 
A34: 24 | O34: 8139.295042 | P34: 34.0776 | Q34: 9.466 | R34: 9008.311964 | S34: 37.716 | T34: 10.47666667 | U34: 11279.71243 | V34: 47.2259 | W34: 13.11830556 | AC34: 0
A35: 25 | O35: 8139.295042 | P35: 34.0776 | Q35: 9.466 | R35: 9008.311964 | S35: 37.716 | T35: 10.47666667 | U35: 11279.71243 | V35: 47.2259 | W35: 13.11830556 | AC35: 0
A36: 26 | O36: 8139.295042 | P36: 34.0776 | Q36: 9.466 | R36: 9008.311964 | S36: 37.716 | T36: 10.47666667 | U36: 11279.71243 | V36: 47.2259 | W36: 13.11830556 | AC36: 0
A37: 27 | O37: 8139.295042 | P37: 34.0776 | Q37: 9.466 | R37: 9008.311964 | S37: 37.716 | T37: 10.47666667 | U37: 11279.71243 | V37: 47.2259 | W37: 13.11830556 | AC37: 0
A38: 28 | O38: 8139.295042 | P38: 34.0776 | Q38: 9.466 | R38: 9008.311964 | S38: 37.716 | T38: 10.47666667 | U38: 11279.71243 | V38: 47.2259 | W38: 13.11830556 | AC38: 0
A39: 29 | O39: 8139.295042 | P39: 34.0776 | Q39: 9.466 | R39: 9008.311964 | S39: 37.716 | T39: 10.47666667 | U39: 11279.71243 | V39: 47.2259 | W39: 13.11830556 | AC39: 0
A40: 30 | O40: 8139.295042 | P40: 34.0776 | Q40: 9.466 | R40: 9008.311964 | S40: 37.716 | T40: 10.47666667 | U40: 11279.71243 | V40: 47.2259 | W40: 13.11830556 | AC40: 0
A41: 31 | O41: 8139.295042 | P41: 34.0776 | Q41: 9.466 | R41: 9008.311964 | S41: 37.716 | T41: 10.47666667 | U41: 11279.71243 | V41: 47.2259 | W41: 13.11830556 | AC41: 0
A42: Рівень одоризації відповідає чинним нормативним документам | O42: =SUMPRODUCT(O11:O41,' розрахунок'!D7:D37)/' розрахунок'!D38 -> 8106.525387 | P42: =SUMPRODUCT(P11:P41,' розрахунок'!D7:D37)/' розрахунок'!D38 -> 33.94040001 | Q42: =SUMPRODUCT(Q11:Q41,' розрахунок'!D7:D37)/' розрахунок'!D38 -> 9.427888892 | R42: =SUMPRODUCT(R11:R41,' розрахунок'!D7:D37)/' розрахунок'!D38 -> 8974.190741 | S42: =SUMPRODUCT(S11:S41,' розрахунок'!D7:D37)/' розрахунок'!D38 -> 37.57314126 | T42: =SUMPRODUCT(T11:T41,' розрахунок'!D7:D37)/' розрахунок'!D38 -> 10.43698368
H43: Середньозважене значення теплоти згоряння:
B46: Начальник управління Сєвєродонецького ЛВУМГ Головко Ю.О.
C47: Підрозділу підприємства, якому підпорядкована лабораторія | O47: прізвище | R47: підпис | V47: дата
B48: Інженер ІІ кат.вимірювальної хіміко-аналітичної лабораторії Єрьоменко М.О.
C49: Лабораторія, де здійснювалось вимірювання газу | O49: прізвище | R49: підпис | V49: дата
B50: Начальник служби метрології Ісаєв В.С.
C51: Підрозділу, відповідального за облік газу за маршрутом | O51: прізвище | R51: підпис | V51: дата

Sheet розрахунок (hidden)
A2: Додаток до Паспорту фізико-хімічних показників природного газу по маршруту № 683
A4: Число місяця | B4: Теплота згоряння вища, МДж/м3 | C4: Луганська область | D4: Загальний обсяг газу, м3
C5: Обсяг газу переданого за добу, м3
C6: АГНКС м.Сєвєродонецьк
A7: 1 | B7: 37.7769 | C7: 1147.17 | D7: =SUM(C7:C7) -> 1147.17
A8: 2 | B8: 37.7769 | C8: 1541.13 | D8: 1541.13
A9: 3 | B9: 37.7769 | C9: 1408.98 | D9: 1408.98
A10: 4 | B10: 37.7769 | C10: 751.56 | D10: 751.56
A11: 5 | B11: 37.7769 | C11: 571.12 | D11: 571.12
A12: 6 | B12: 37.408 | C12: 1156.44 | D12: 1156.44
A13: 7 | B13: 37.408 | C13: 1562.91 | D13: 1562.91
A14: 8 | B14: 37.408 | C14: 772.38 | D14: 772.38
A15: 9 | B15: 37.408 | C15: 1231.28 | D15: 1231.28
A16: 10 | B16: 37.408 | C16: 1329.84 | D16: 1329.84
A17: 11 | B17: 37.408 | C17: 951.02 | D17: 951.02
A18: 12 | B18: 37.408 | C18: 627.31 | D18: 627.31
A19: 13 | B19: 37.408 | C19: 1245.38 | D19: 1245.38
A20: 14 | B20: 37.408 | C20: 1383.37 | D20: 1383.37
A21: 15 | B21: 37.408 | C21: 1600.36 | D21: 1600.36
A22: 16 | B22: 37.408 | C22: 1459.14 | D22: 1459.14
A23: 17 | B23: 37.408 | C23: 1360.26 | D23: 1360.26
A24: 18 | B24: 37.408 | C24: 974.29 | D24: 974.29
A25: 19 | B25: 37.408 | C25: 991.29 | D25: 991.29
A26: 20 | B26: 37.408 | C26: 1471.52 | D26: 1471.52
A27: 21 | B27: 37.716 | C27: 1268.48 | D27: 1268.48
A28: 22 | B28: 37.716 | C28: 1509.97 | D28: 1509.97
A29: 23 | B29: 37.716 | C29: 1558.92 | D29: 1558.92
A30: 24 | B30: 37.716 | C30: 1577.06 | D30: 1577.06
A31: 25 | B31: 37.716 | C31: 780.03 | D31: 780.03
A32: 26 | B32: 37.716 | C32: 649.02 | D32: 649.02
A33: 27 | B33: 37.716 | C33: 1314.25 | D33: 1314.25
A34: 28 | B34: 37.716 | C34: 1327 | D34: 1327
A35: 29 | B35: 37.716 | C35: 903.2 | D35: =C35 -> 903.2
A36: 30 | B36: 37.716 | C36: 1224.73 | D36: =C36 -> 1224.73
A37: 31 | B37: 37.716 | C37: 1099.45 | D37: =C37 -> 1099.45
A38: Загальний обсяг газу, м3 | C38: =SUM(C7:C37) -> 36748.86 | D38: =SUM(D7:D37) -> 36748.86
A39: Енергія, МДж | C39: =SUMPRODUCT(B7:B37,C7:C37) -> 1380770.108 | D39: =SUMPRODUCT(B7:B37,D7:D37) -> 1380770.108
A40: Теплота згоряння (середньозважене значення за місяць), МДж/м³ | C40: =C39/C38 -> 37.57314126 | D40: =D39/D38 -> 37.57314126
A41: Теплота згоряння (середньозважене значення за місяць), ккал/м³ | C41: =C40*238.8459 -> 8974.190741 | D41: =D40*238.8459 -> 8974.190741
A42: Теплота згоряння (середньозважене значення за місяць), кВт*год./м³ | C42: =C40/3.6 -> 10.43698368 | D42: =D40/3.6 -> 10.43698368

Sheet додаток
A2: Додаток до Паспорту фізико-хімічних показників природного газу № 683
A4: Область | B4: ГРС, прямий споживач | C4: Cередньозважене значення вищої теплоти згоряння
C5: МДж/м³ | D5: ккал/м³ | E5: кВт*год./м³
A6: Луганська область | B6: АГНКС м.Сєвєродонецьк | C6: 37.57 | D6: 8974 | E6: 10.44
A7: Середньозважене значення вищої теплоти згоряння по маршруту №683 | C7: 37.57 | D7: 8974 | E7: 10.44
A11: Начальник управління Сєвєродонецького ЛВУМГ Головко Ю.О.
A12: Підрозділу підприємства, якому підпорядкована лабораторія | D12: прізвище | E12: підпис
A13: Інженер ІІ кат.вимірювальної хіміко-аналітичної лабораторії Єрьоменко М.О.
A14: Лабораторія, де здійснювалось вимірювання газу | D14: прізвище | E14: підпис
A15: Начальник служби метрології Ісаєв В.С.
A16: Підрозділу, відповідального за облік газу за маршрутом | D16: прізвище | E16: підпис
F24: дата
F26: дата
F28: дата

Sheet variablesList (hidden)
A1: 3 | B1: x:\gaysin | C1: 10, 11, 24, 25, 127, 128, 132, 180, 207, 215 | D1: x:\
B2: x:\Illinci
B3: x:\Talne
